fUSD/lending_fUSD_20240428
["ID","MTS","AMOUNT","RATE_DAILY","PERIOD"]
[324807797,1714339914274,-565.94,0.00013698,2]
[324807798,1714339914284,-500.0,0.00013698,2]
[324807799,1714339914293,-500.0,0.00013698,2]
[324807800,1714339914303,-500.0,0.00013698,2]
[324807801,1714339914313,-825.93,0.00013698,2]
[324807802,1714339914323,-559.40146233,0.00013698,2]
[324807803,1714339914333,-602.04,0.00013698,2]
[324807804,1714339914345,-651.65,0.00013698,2]
[324807805,1714339914355,-1568.74,0.00013698,2]
[324807806,1714339914365,-520.26,0.00013698,2]
[324807807,1714339914546,-500.0,0.00013698,2]
[324807808,1714339914558,-500.0,0.00013698,2]
[324807809,1714339914567,-500.0,0.00013698,2]
[324807810,1714339914579,-1140.77,0.00013698,2]
[324807811,1714339914588,-500.0,0.00013698,2]
[324807812,1714339914599,-549.86,0.00013698,2]
[324807813,1714339914608,-500.0,0.00013698,2]
[324807814,1714339914619,-960.02,0.00013698,2]
[324807815,1714339914630,-500.0,0.00013698,2]
[324807816,1714339914639,-1723.08,0.00013698,2]
[324807817,1714339914648,-500.0,0.00013698,2]
[324807818,1714339914659,-500.0,0.00013698,2]
[324807819,1714339914671,-500.0,0.00013698,2]
[324807820,1714339914681,-500.0,0.00013698,2]
[324807821,1714339914690,-555.74,0.00013698,2]
[324807822,1714339914700,-500.0,0.00013698,2]
[324807823,1714339914710,-500.0,0.00013698,2]
[324807824,1714339914721,-1272.72,0.00013698,2]
[324807825,1714339914732,-500.0,0.00013698,2]
[324807826,1714339914742,-1044.49,0.00013698,2]
[324807827,1714339914753,-854.35,0.00013698,2]
[324807828,1714339914763,-500.0,0.00013698,2]
[324807829,1714339914775,-880.39,0.00013698,2]
[324807830,1714339914788,-500.0,0.00013698,2]
[324807831,1714339914798,-1228.27,0.00013698,2]
[324807832,1714339914807,-500.0,0.00013698,2]
[324807833,1714339914816,-729.04,0.00013698,2]
[324807834,1714339914826,-500.0,0.00013698,2]
[324807835,1714339914835,-500.0,0.00013698,2]
[324807836,1714339914845,-530.05,0.00013698,2]
[324807837,1714339914855,-3505.37,0.00013698,2]
[324807838,1714339914865,-797.92,0.00013698,2]
[324807839,1714339914875,-529.45,0.00013698,2]
[324807840,1714339914886,-629.63,0.00013698,2]
[324807841,1714339914895,-500.0,0.00013698,2]
[324807842,1714339914905,-426.33976249,0.00013698,2]
[324807843,1714339914915,-1082.28,0.00013698,2]
[324807844,1714339914924,-500.0,0.00013698,2]
[324807845,1714339914934,-3192.23,0.00013698,2]
[324807846,1714339914944,-500.0,0.00013698,2]
[324807847,1714339914954,-500.0,0.00013698,2]
[324807848,1714339914963,-4836.83,0.00013698,2]
[324807849,1714339914973,-500.0,0.00013698,2]
[324807850,1714339914982,-1419.08,0.00013698,2]
[324807851,1714339914991,-3170.41,0.00013698,2]
[324807852,1714339915001,-500.0,0.00013698,2]
[324807853,1714339915011,-500.0,0.00013698,2]
[324807854,1714339915020,-500.0,0.00013698,2]
[324807855,1714339915030,-554.07,0.00013698,2]
[324807856,1714339915040,-1075.74,0.00013698,2]
[324807857,1714339915050,-3460.09,0.00013698,2]
[324807858,1714339915059,-1169.99,0.00013698,2]
[324807859,1714339915069,-812.15,0.00013698,2]
[324807860,1714339915078,-9425.46,0.00013698,2]
[324807861,1714339915088,-1842.15,0.00013698,2]
[324807862,1714339915098,-500.0,0.00013698,2]
[324807863,1714339915107,-500.0,0.00013698,2]
[324807864,1714339915117,-1069.53,0.00013698,2]
[324807865,1714339915127,-500.0,0.00013698,2]
[324807866,1714339915136,-500.0,0.00013698,2]
[324807867,1714339915146,-500.0,0.00013698,2]
[324807868,1714339915155,-500.0,0.00013698,2]
[324807869,1714339915164,-500.0,0.00013698,2]
[324807870,1714339915173,-500.0,0.00013698,2]
[324807871,1714339915183,-14272.99,0.00013698,2]
[324807872,1714339915193,-544.14,0.00013698,2]
[324807873,1714339915202,-7051.41,0.00013698,2]
[324807874,1714339915211,-500.0,0.00013698,2]
[324807875,1714339915221,-2707.78,0.00013698,2]
[324807876,1714339915230,-500.0,0.00013698,2]
[324807877,1714339915239,-1038.22,0.00013698,2]
[324807878,1714339915248,-500.0,0.00013698,2]
[324807879,1714339915257,-789.36,0.00013698,2]
[324807880,1714339915266,-2766.64,0.00013698,2]
[324807881,1714339915275,-987.03,0.00013698,2]
[324807882,1714339915285,-1211.54,0.00013698,2]
[324807883,1714339915295,-675.35,0.00013698,2]
[324807884,1714339915304,-1666.13,0.00013698,2]
[324807885,1714339915313,-500.0,0.00013698,2]
[324807886,1714339915322,-1349.22,0.00013698,2]
[324807887,1714339915331,-1516.18,0.00013698,2]
[324807888,1714339915342,-500.0,0.00013698,2]
[324807889,1714339915353,-6591.59,0.00013698,2]
[324807890,1714339915363,-1899.29,0.00013698,2]
[324807891,1714339915375,-783.36,0.00013698,2]
[324807892,1714339915384,-1988.95,0.00013698,2]
[324807893,1714339915394,-500.0,0.00013698,2]
[324807894,1714339915404,-1261.65,0.00013698,2]
[324807895,1714339915415,-2135.06,0.00013698,2]
[324807896,1714339915424,-500.0,0.00013698,2]
[324807897,1714339915434,-562.7,0.00013698,2]
[324807898,1714339915444,-500.0,0.00013698,2]
[324807899,1714339915454,-500.0,0.00013698,2]
[324807900,1714339915464,-6232.35,0.00013698,2]
[324807901,1714339915475,-1410.0,0.00013698,2]
[324807902,1714339915486,-659.22,0.00013698,2]
[324807903,1714339915495,-1672.92,0.00013698,2]
[324807904,1714339915505,-1799.04,0.00013698,2]
[324807905,1714339915515,-500.0,0.00013698,2]
[324807906,1714339915525,-895.24,0.00013698,2]
[324807907,1714339915535,-1513.28,0.00013698,2]
[324807908,1714339915544,-6800.76,0.00013698,2]
[324807909,1714339915554,-265.61331174,0.00013698,2]
[324807910,1714339915564,-500.0,0.00013698,2]
[324807911,1714339915574,-753.18,0.00013698,2]
[324807912,1714339915586,-500.0,0.00013698,2]
[324807913,1714339915596,-1733.37,0.00013698,2]
[324807914,1714339915606,-782.1,0.00013698,2]
[324807915,1714339915618,-1652.85,0.00013698,2]
[324807916,1714339915628,-500.0,0.00013698,2]
[324807917,1714339915638,-1590.77,0.00013698,2]
[324807918,1714339915647,-12133.37,0.00013698,2]
[324807919,1714339915657,-2025.62,0.00013698,2]
[324807920,1714339915666,-1421.85,0.00013698,2]
[324807921,1714339915676,-1135.8,0.00013698,2]
[324807922,1714339915685,-500.0,0.00013698,2]
[324807923,1714339915695,-4575.67,0.00013698,2]
[324807924,1714339915704,-500.0,0.00013698,2]
[324807925,1714339915714,-6107.04,0.00013698,2]
[324807926,1714339915723,-1396.35,0.00013698,2]
[324807927,1714339915732,-998.38,0.00013698,2]
[324807928,1714339915741,-2527.69,0.00013698,2]
[324807929,1714339915751,-2789.13,0.00013698,2]
[324807930,1714339915760,-1761.96,0.00013698,2]
[324807931,1714339915769,-1062.84,0.00013698,2]
[324807932,1714339915779,-500.0,0.00013698,2]
[324807933,1714339915793,-1977.9,0.00013698,2]
[324807934,1714339915803,-2491.39,0.00013698,2]
[324807935,1714339915812,-500.0,0.00013698,2]
[324807936,1714339915822,-3361.84,0.00013698,2]
[324807937,1714339915833,-1098.32,0.00013698,2]
[324807938,1714339915842,-1081.51,0.00013698,2]
[324807939,1714339915852,-2735.15,0.00013698,2]
[324807940,1714339915862,-500.0,0.00013698,2]
[324807941,1714339915872,-1862.58,0.00013698,2]
[324807942,1714339915883,-4338.42,0.00013698,2]
[324807943,1714339915892,-1752.48,0.00013698,2]
[324807944,1714339915902,-601.21256319,0.00013698,2]
[324807945,1714339915912,-844.65,0.00013698,2]
[324807946,1714339915922,-2116.48,0.00013698,2]
[324807947,1714339915932,-500.0,0.00013698,2]
[324807948,1714339915942,-1415.56,0.00013698,2]
[324807949,1714339915952,-1696.77,0.00013698,2]
[324807950,1714339915961,-552.51,0.00013698,2]
[324807951,1714339915971,-500.0,0.00013698,2]
[324807952,1714339915980,-7394.13,0.00013698,2]
[324807953,1714339915990,-228.03976704,0.00013698,2]
[324807954,1714339915999,-500.0,0.00013698,2]
[324807955,1714339916008,-2704.4,0.00013698,2]
[324807956,1714339916018,-500.0,0.00013698,2]
[324807957,1714339916027,-547.48,0.00013698,2]
[324807958,1714339916036,-500.0,0.00013698,2]
[324807959,1714339916046,-869.1,0.00013698,2]
[324807960,1714339916055,-500.0,0.00013698,2]
[324807961,1714339916065,-3366.67,0.00013698,2]
[324807962,1714339916074,-709.72,0.00013698,2]
[324807963,1714339916084,-849.0,0.00013698,2]
[324807964,1714339916093,-4609.23,0.00013698,2]
[324807965,1714339916103,-643.50230969,0.00013698,2]
[324807966,1714339916112,-1257.26,0.00013698,2]
[324807967,1714339916122,-500.0,0.00013698,2]
[324807968,1714339916131,-972.25,0.00013698,2]
[324807969,1714339916141,-1051.8,0.00013698,2]
[324807970,1714339916151,-1129.36,0.00013698,2]
[324807971,1714339916160,-500.0,0.00013698,2]
[324807972,1714339916170,-1721.28,0.00013698,2]
[324807973,1714339916179,-1025.92,0.00013698,2]
[324807974,1714339916189,-505.66,0.00013698,2]
[324807975,1714339916198,-500.0,0.00013698,2]
[324807976,1714339916208,-500.0,0.00013698,2]
[324807977,1714339916217,-784.13,0.00013698,2]
[324807978,1714339916226,-3106.8,0.00013698,2]
[324807979,1714339916235,-1332.25,0.00013698,2]
[324807980,1714339916244,-1770.89,0.00013698,2]
[324807981,1714339916253,-500.0,0.00013698,2]
[324807982,1714339916262,-3285.67,0.00013698,2]
[324807983,1714339916272,-500.0,0.00013698,2]
[324807984,1714339916282,-1973.0,0.00013698,2]
[324807985,1714339916292,-500.0,0.00013698,2]
[324807986,1714339916301,-581.39,0.00013698,2]
[324807987,1714339916310,-5056.57,0.00013698,2]
[324807988,1714339916319,-500.0,0.00013698,2]
[324807989,1714339916328,-528.94,0.00013698,2]
[324807990,1714339916337,-1960.25,0.00013698,2]
[324807991,1714339916346,-500.0,0.00013698,2]
[324807992,1714339916356,-854.46,0.00013698,2]
[324807993,1714339916365,-500.0,0.00013698,2]
[324807994,1714339916375,-505.33,0.00013698,2]
[324807995,1714339916383,-1460.22,0.00013698,2]
[324807996,1714339916392,-500.0,0.00013698,2]
[324807997,1714339916401,-500.0,0.00013698,2]
[324807998,1714339916410,-4144.13,0.00013698,2]
[324807999,1714339916420,-2730.97,0.00013698,2]
[324808000,1714339916429,-2002.94,0.00013698,2]
[324808001,1714339916438,-1318.77,0.00013698,2]
[324808002,1714339916447,-500.0,0.00013698,2]
[324808003,1714339916456,-1001.05,0.00013698,2]
[324808004,1714339916465,-543.76,0.00013698,2]
[324808005,1714339916474,-500.0,0.00013698,2]
[324808006,1714339916483,-500.0,0.00013698,2]
[324808007,1714339916492,-9331.99,0.00013698,2]
[324808008,1714339916501,-4277.49,0.00013698,2]
[324808009,1714339916511,-500.0,0.00013698,2]
[324808010,1714339916520,-74233.0315181,0.00013698,2]
[324808011,1714339916530,-5193.46,0.00013698,2]
[324808012,1714339916539,-775.85,0.00013698,2]
[324808013,1714339916548,-500.0,0.00013698,2]
[324808014,1714339916557,-743.46,0.00013698,2]
[324808015,1714339916566,-500.0,0.00013698,2]
[324808016,1714339916575,-200.0,0.00013699,2]
[324808017,1714339916585,-200.0,0.00013699,2]
[324808018,1714339916594,-200.0,0.00013699,2]
[324808019,1714339916603,-200.0,0.00013699,2]
[324808020,1714339916611,-200.0,0.00013699,2]
[324808021,1714339916620,-200.0,0.00013699,2]
[324808022,1714339916630,-200.0,0.00013699,2]
[324808023,1714339916639,-250.0,0.00013699,2]
[324808024,1714339916648,-179.08,0.00013699,2]
[324808025,1714339916657,-1129.14,0.000137,2]
[324808026,1714339916666,-1129.14,0.000137,2]
[324808027,1714339916675,-1129.14,0.000137,2]
[324808028,1714339916683,-1129.14,0.000137,2]
[324808029,1714339916693,-1129.14,0.000137,2]
[324808030,1714339916702,-175.36,0.00013795,2]
[324808031,1714339916711,-9302.0206916,0.000138,2]
[324808032,1714339916720,-1000.0,0.00013844,2]
[324808033,1714339916730,-160.0,0.00013884,2]
[324808034,1714339916739,-518.0,0.00013918,2]
[324808035,1714339916747,-259.0,0.0001394,2]
[324808036,1714339916756,-500.0,0.00013972,2]
[324808037,1714339916765,-500.0,0.00013972,2]
[324808038,1714339916774,-500.0,0.00013972,2]
[324808039,1714339916785,-500.0,0.00013972,2]
[324808040,1714339916794,-177.85,0.00013972,2]
[324808041,1714339916803,-500.0,0.00013972,2]
[324808042,1714339916812,-506.83,0.00013972,2]
[324808043,1714339916885,-500.0,0.00013972,2]
[324808044,1714339916896,-500.0,0.00013972,2]
[324808045,1714339916905,-500.0,0.00013972,2]
[324808046,1714339916914,-500.0,0.00013972,2]
[324808047,1714339916923,-500.0,0.00013972,2]
[324808048,1714339916932,-500.0,0.00013972,2]
[324808049,1714339916941,-500.0,0.00013972,2]
[324808050,1714339916950,-500.0,0.00013972,2]
[324808051,1714339916959,-500.0,0.00013972,2]
[324808052,1714339916969,-500.0,0.00013972,2]
[324808053,1714339916978,-517.57,0.00013972,2]
[324808054,1714339916987,-586.34,0.00013972,2]
[324808055,1714339916995,-733.89,0.00013972,2]
[324808056,1714339917004,-674.04,0.00013972,2]
[324808057,1714339917014,-500.0,0.00013972,2]
[324808058,1714339917022,-247.33784284,0.00013972,2]
[324808059,1714339917032,-500.0,0.00013972,2]
[324808060,1714339917041,-500.0,0.00013972,2]
[324808061,1714339917050,-500.0,0.00013972,2]
[324808062,1714339917059,-500.0,0.00013972,2]
[324808063,1714339917068,-500.0,0.00013972,2]
[324808064,1714339917078,-552.07,0.00013972,2]
[324808065,1714339917087,-588.66,0.00013972,2]
[324808066,1714339917096,-500.0,0.00013972,2]
[324808067,1714339917105,-500.0,0.00013972,2]
[324808068,1714339917114,-798.42,0.00013972,2]
[324808069,1714339917123,-500.0,0.00013972,2]
[324808070,1714339917132,-928.66,0.00013972,2]
[324808071,1714339917140,-505.51,0.00013972,2]
[324808072,1714339917150,-500.0,0.00013972,2]
[324808073,1714339917159,-214.66086343,0.00013972,2]
[324808074,1714339917168,-903.89,0.00013972,2]
[324808075,1714339917177,-737.63,0.00013972,2]
[324808076,1714339917187,-500.0,0.00013972,2]
[324808077,1714339917196,-500.0,0.00013972,2]
[324808078,1714339917205,-864.97,0.00013972,2]
[324808079,1714339917214,-718.49,0.00013972,2]
[324808080,1714339917224,-558.62631119,0.00013972,2]
[324808081,1714339917233,-504.53,0.00013972,2]
[324808082,1714339917242,-500.0,0.00013972,2]
[324808083,1714339917252,-594.05,0.00013972,2]
[324808084,1714339917261,-500.0,0.00013972,2]
[324808085,1714339917271,-500.0,0.00013972,2]
[324808086,1714339917280,-500.0,0.00013972,2]
[324808087,1714339917289,-870.38,0.00013972,2]
[324808088,1714339917298,-501.18,0.00013972,2]
[324808089,1714339917307,-500.0,0.00013972,2]
[324808090,1714339917316,-500.0,0.00013972,2]
[324808091,1714339917326,-500.0,0.00013972,2]
[324808092,1714339917335,-500.0,0.00013972,2]
[324808093,1714339917344,-500.0,0.00013972,2]
[324808094,1714339917353,-500.0,0.00013972,2]
[324808095,1714339917363,-500.0,0.00013972,2]
[324808096,1714339917372,-610.01,0.00013972,2]
[324808097,1714339917381,-500.0,0.00013972,2]
[324808098,1714339917390,-567.57,0.00013972,2]
[324808099,1714339917399,-500.0,0.00013972,2]
[324808100,1714339917408,-1451.39,0.00013972,2]
[324808101,1714339917417,-500.0,0.00013972,2]
[324808102,1714339917426,-500.0,0.00013972,2]
[324808103,1714339917435,-1302.89,0.00013972,2]
[324808104,1714339917444,-500.0,0.00013972,2]
[324808105,1714339917454,-545.45,0.00013972,2]
[324808106,1714339917463,-500.0,0.00013972,2]
[324808107,1714339917472,-500.0,0.00013972,2]
[324808108,1714339917481,-500.0,0.00013972,2]
[324808109,1714339917490,-500.0,0.00013972,2]
[324808110,1714339917499,-500.0,0.00013972,2]
[324808111,1714339917508,-525.6,0.00013972,2]
[324808112,1714339917517,-500.0,0.00013972,2]
[324808113,1714339917526,-585.48,0.00013972,2]
[324808114,1714339917535,-584.64,0.00013972,2]
[324808115,1714339917544,-857.33,0.00013972,2]
[324808116,1714339917553,-500.0,0.00013972,2]
[324808117,1714339917562,-704.02,0.00013972,2]
[324808118,1714339917571,-500.0,0.00013972,2]
[324808119,1714339917579,-1320.75,0.00013972,2]
[324808120,1714339917589,-500.0,0.00013972,2]
[324808121,1714339917598,-500.0,0.00013972,2]
[324808122,1714339917607,-507.58,0.00013972,2]
[324808123,1714339917616,-504.69312566,0.00013972,2]
[324808124,1714339917625,-500.0,0.00013972,2]
[324808125,1714339917634,-730.12,0.00013972,2]
[324808126,1714339917642,-596.65,0.00013972,2]
[324808127,1714339917651,-500.0,0.00013972,2]
[324808128,1714339917660,-369.9,0.00013972,2]
[324808129,1714339917669,-565.97,0.00013972,2]
[324808130,1714339917678,-500.0,0.00013972,2]
[324808131,1714339917688,-875.78,0.00013972,2]
[324808132,1714339917697,-500.0,0.00013972,2]
[324808133,1714339917706,-500.0,0.00013972,2]
[324808134,1714339917715,-526.69,0.00013972,2]
[324808135,1714339917724,-560.54,0.00013972,2]
[324808136,1714339917733,-736.07,0.00013972,2]
[324808137,1714339917742,-500.0,0.00013972,2]
[324808138,1714339917751,-604.78,0.00013972,2]
[324808139,1714339917759,-500.0,0.00013972,2]
[324808140,1714339917769,-500.0,0.00013972,2]
[324808141,1714339917779,-500.0,0.00013972,2]
[324808142,1714339917792,-500.0,0.00013972,2]
[324808143,1714339917801,-523.54,0.00013972,2]
[324808144,1714339917811,-2956.01,0.00013972,2]
[324808145,1714339917820,-500.0,0.00013972,2]
[324808146,1714339917830,-565.94,0.00013972,2]
[324808147,1714339917839,-500.0,0.00013972,2]
[324808148,1714339917849,-500.0,0.00013972,2]
[324808149,1714339917860,-500.0,0.00013972,2]
[324808150,1714339917870,-825.93,0.00013972,2]
[324808151,1714339917879,-602.04,0.00013972,2]
[324808152,1714339917889,-651.65,0.00013972,2]
[324808153,1714339917898,-1568.74,0.00013972,2]
[324808154,1714339917907,-520.26,0.00013972,2]
[324808155,1714339917917,-500.0,0.00013972,2]
[324808156,1714339917927,-500.0,0.00013972,2]
[324808157,1714339917936,-500.0,0.00013972,2]
[324808158,1714339917946,-1140.77,0.00013972,2]
[324808159,1714339917956,-500.0,0.00013972,2]
[324808160,1714339917965,-549.86,0.00013972,2]
[324808161,1714339917974,-575.38038316,0.00013972,2]
[324808162,1714339917983,-537.53,0.00013972,2]
[324808163,1714339917993,-960.02,0.00013972,2]
[324808164,1714339918003,-1723.08,0.00013972,2]
[324808165,1714339918012,-500.0,0.00013972,2]
[324808166,1714339918021,-500.0,0.00013972,2]
[324808167,1714339918030,-500.0,0.00013972,2]
[324808168,1714339918039,-500.0,0.00013972,2]
[324808169,1714339918048,-555.74,0.00013972,2]
[324808170,1714339918058,-500.0,0.00013972,2]
[324808171,1714339918067,-500.0,0.00013972,2]
[324808172,1714339918077,-1272.72,0.00013972,2]
[324808173,1714339918086,-500.0,0.00013972,2]
[324808174,1714339918095,-1044.49,0.00013972,2]
[324808175,1714339918105,-854.35,0.00013972,2]
[324808176,1714339918114,-500.0,0.00013972,2]
[324808177,1714339918124,-880.39,0.00013972,2]
[324808178,1714339918133,-500.0,0.00013972,2]
[324808179,1714339918142,-1228.27,0.00013972,2]
[324808180,1714339918152,-500.0,0.00013972,2]
[324808181,1714339918161,-729.04,0.00013972,2]
[324808182,1714339918171,-500.0,0.00013972,2]
[324808183,1714339918180,-500.0,0.00013972,2]
[324808184,1714339918191,-530.05,0.00013972,2]
[324808185,1714339918200,-3505.37,0.00013972,2]
[324808186,1714339918210,-797.92,0.00013972,2]
[324808187,1714339918220,-529.45,0.00013972,2]
[324808188,1714339918248,-629.63,0.00013972,2]
[324808189,1714339918258,-500.0,0.00013972,2]
[324808190,1714339918268,-1082.28,0.00013972,2]
[324808191,1714339918277,-500.0,0.00013972,2]
[324808192,1714339918286,-3192.23,0.00013972,2]
[324808193,1714339918296,-500.0,0.00013972,2]
[324808194,1714339918305,-500.0,0.00013972,2]
[324808195,1714339918314,-4836.83,0.00013972,2]
[324808196,1714339918323,-500.0,0.00013972,2]
[324808197,1714339918332,-1419.08,0.00013972,2]
[324808198,1714339918342,-3170.41,0.00013972,2]
[324808199,1714339918352,-500.0,0.00013972,2]
[324808200,1714339918361,-500.0,0.00013972,2]
[324808201,1714339918371,-500.0,0.00013972,2]
[324808202,1714339918381,-1075.74,0.00013972,2]
[324808203,1714339918390,-554.07,0.00013972,2]
[324808204,1714339918400,-3460.09,0.00013972,2]
[324808205,1714339918410,-1169.99,0.00013972,2]
[324808206,1714339918419,-812.15,0.00013972,2]
[324808207,1714339918429,-9425.46,0.00013972,2]
[324808208,1714339918439,-1842.15,0.00013972,2]
[324808209,1714339918448,-500.0,0.00013972,2]
[324808210,1714339918458,-500.0,0.00013972,2]
[324808211,1714339918468,-1069.53,0.00013972,2]
[324808212,1714339918479,-500.0,0.00013972,2]
[324808213,1714339918490,-500.0,0.00013972,2]
[324808214,1714339918500,-500.0,0.00013972,2]
[324808215,1714339918510,-500.0,0.00013972,2]
[324808216,1714339918521,-500.0,0.00013972,2]
[324808217,1714339918531,-500.0,0.00013972,2]
[324808218,1714339918542,-14272.99,0.00013972,2]
[324808219,1714339918551,-544.14,0.00013972,2]
[324808220,1714339918561,-7051.41,0.00013972,2]
[324808221,1714339918571,-500.0,0.00013972,2]
[324808222,1714339918580,-2707.78,0.00013972,2]
[324808223,1714339918590,-500.0,0.00013972,2]
[324808224,1714339918600,-1038.22,0.00013972,2]
[324808225,1714339918609,-522.61,0.00013972,2]
[324808226,1714339918619,-789.36,0.00013972,2]
[324808227,1714339918628,-2766.64,0.00013972,2]
[324808228,1714339918637,-987.03,0.00013972,2]
[324808229,1714339918647,-1211.54,0.00013972,2]
[324808230,1714339918657,-675.35,0.00013972,2]
[324808231,1714339918667,-1666.13,0.00013972,2]
[324808232,1714339918676,-500.0,0.00013972,2]
[324808233,1714339918685,-1516.18,0.00013972,2]
[324808234,1714339918695,-1349.22,0.00013972,2]
[324808235,1714339918704,-500.0,0.00013972,2]
[324808236,1714339918713,-6591.59,0.00013972,2]
[324808237,1714339918723,-1899.29,0.00013972,2]
[324808238,1714339918732,-783.36,0.00013972,2]
[324808239,1714339918742,-1988.95,0.00013972,2]
[324808240,1714339918751,-500.0,0.00013972,2]
[324808241,1714339918760,-1261.65,0.00013972,2]
[324808242,1714339918770,-2135.06,0.00013972,2]
[324808243,1714339918780,-500.0,0.00013972,2]
[324808244,1714339918793,-562.7,0.00013972,2]
[324808245,1714339918803,-500.0,0.00013972,2]
[324808246,1714339918813,-500.0,0.00013972,2]
[324808247,1714339918823,-6232.35,0.00013972,2]
[324808248,1714339918834,-1410.0,0.00013972,2]
[324808249,1714339918844,-659.22,0.00013972,2]
[324808250,1714339918854,-1672.92,0.00013972,2]
[324808251,1714339918868,-1799.04,0.00013972,2]
[324808252,1714339918879,-500.0,0.00013972,2]
[324808253,1714339918888,-895.24,0.00013972,2]
[324808254,1714339918899,-1513.28,0.00013972,2]
[324808255,1714339918908,-6800.76,0.00013972,2]
[324808256,1714339918918,-500.0,0.00013972,2]
[324808257,1714339918928,-753.18,0.00013972,2]
[324808258,1714339918938,-500.0,0.00013972,2]
[324808259,1714339918948,-1733.37,0.00013972,2]
[324808260,1714339918958,-782.1,0.00013972,2]
[324808261,1714339918968,-1652.85,0.00013972,2]
[324808262,1714339918978,-500.0,0.00013972,2]
[324808263,1714339918988,-1590.77,0.00013972,2]
[324808264,1714339918997,-12133.37,0.00013972,2]
[324808265,1714339919007,-2025.62,0.00013972,2]
[324808266,1714339919016,-1135.8,0.00013972,2]
[324808267,1714339919026,-1421.85,0.00013972,2]
[324808268,1714339919036,-500.0,0.00013972,2]
[324808269,1714339919046,-4575.67,0.00013972,2]
[324808270,1714339919055,-500.0,0.00013972,2]
[324808271,1714339919065,-6107.04,0.00013972,2]
[324808272,1714339919076,-1396.35,0.00013972,2]
[324808273,1714339919086,-998.38,0.00013972,2]
[324808274,1714339919096,-2527.69,0.00013972,2]
[324808275,1714339919106,-2789.13,0.00013972,2]
[324808276,1714339919115,-1761.96,0.00013972,2]
[324808277,1714339919125,-1062.84,0.00013972,2]
[324808278,1714339919134,-500.0,0.00013972,2]
[324808279,1714339919144,-1977.9,0.00013972,2]
[324808280,1714339919154,-2491.39,0.00013972,2]
[324808281,1714339919163,-166.56325975,0.00013972,2]
[324808282,1714339919173,-3361.84,0.00013972,2]
[324808283,1714339919183,-1098.32,0.00013972,2]
[324808284,1714339919193,-1081.51,0.00013972,2]
[324808285,1714339919202,-2735.15,0.00013972,2]
[324808286,1714339919212,-500.0,0.00013972,2]
[324808287,1714339919221,-1862.58,0.00013972,2]
[324808288,1714339919231,-4338.42,0.00013972,2]
[324808289,1714339919240,-1752.48,0.00013972,2]
[324808290,1714339919250,-844.65,0.00013972,2]
[324808291,1714339919260,-2116.48,0.00013972,2]
[324808292,1714339919270,-500.0,0.00013972,2]
[324808293,1714339919282,-1415.56,0.00013972,2]
[324808294,1714339919292,-552.51,0.00013972,2]
[324808295,1714339919304,-1696.77,0.00013972,2]
[324808296,1714339919315,-500.0,0.00013972,2]